[Event "Late-Titled-Tuesday-Blitz-January-23-2024"]
[Site "Chess.com"]
[Date "2024.01.23"]
[Round "8"]
[White "Nf3c5"]
[Black "Felix-Rose"]
[Result "0-1"]
[WhiteElo "2517"]
[BlackElo "2335"]
[TimeControl "180+1"]
[EndTime "15:25:38 PST"]
[Termination "Felix-Rose won on time"]

1. d4 {[%clk 0:03:00.9]} 1... d5 {[%clk 0:02:59.4]} 2. Nf3 {[%clk 0:03:00.3]}
2... Nf6 {[%clk 0:02:59.4]} 3. c4 {[%clk 0:02:59.2]} 3... e6 {[%clk 0:02:58.3]}
4. cxd5 {[%clk 0:02:53.3]} 4... exd5 {[%clk 0:02:57.6]} 5. Nc3 {[%clk
0:02:53.9]} 5... Bb4 {[%clk 0:02:57.4]} 6. Bg5 {[%clk 0:02:51.7]} 6... Nbd7
{[%clk 0:02:48.2]} 7. Nd2 {[%clk 0:02:42.2]} 7... h6 {[%clk 0:02:45.2]} 8. Bh4
{[%clk 0:02:42.3]} 8... g5 {[%clk 0:02:44]} 9. Bg3 {[%clk 0:02:42.1]} 9... c5
{[%clk 0:02:35.8]} 10. e3 {[%clk 0:02:23.4]} 10... Qa5 {[%clk 0:02:29.1]} 11.
Be2 {[%clk 0:02:11]} 11... cxd4 {[%clk 0:02:20.7]} 12. exd4 {[%clk 0:02:08.5]}
12... Bxc3 {[%clk 0:02:21.1]} 13. bxc3 {[%clk 0:02:08]} 13... Qxc3 {[%clk
0:02:21.2]} 14. O-O {[%clk 0:02:08.6]} 14... Qxd4 {[%clk 0:02:18]} 15. Bd6
{[%clk 0:02:06.9]} 15... Ne4 {[%clk 0:01:58.2]} 16. Nxe4 {[%clk 0:01:46.9]}
16... Qxd1 {[%clk 0:01:57.7]} 17. Raxd1 {[%clk 0:01:47.5]} 17... dxe4 {[%clk
0:01:58.6]} 18. Rd4 {[%clk 0:01:48.2]} 18... f5 {[%clk 0:01:57]} 19. Bh5+ {[%clk
0:01:46.7]} 19... Kd8 {[%clk 0:01:52.5]} 20. Rfd1 {[%clk 0:01:47.1]} 20... Rg8
{[%clk 0:01:29.6]} 21. Bf7 {[%clk 0:01:42.2]} 21... Rg7 {[%clk 0:01:24.3]} 22.
Be6 {[%clk 0:01:41.1]} 22... f4 {[%clk 0:01:17.1]} 23. Rxe4 {[%clk 0:01:24.6]}
23... a5 {[%clk 0:00:52.8]} 24. Bg4 {[%clk 0:00:54.9]} 24... Ra6 {[%clk
0:00:48.5]} 25. Bh5 {[%clk 0:00:54.4]} 25... Rg8 {[%clk 0:00:36.9]} 26. Bf7
{[%clk 0:00:51.8]} 26... Rh8 {[%clk 0:00:35.4]} 27. h4 {[%clk 0:00:30.8]} 27...
b5 {[%clk 0:00:19.6]} 28. Re7 {[%clk 0:00:24.1]} 28... Rxd6 {[%clk 0:00:18.5]}
29. Rxd6 {[%clk 0:00:12.6]} 29... Kxe7 {[%clk 0:00:18.7]} 30. Rc6 {[%clk
0:00:12.2]} 30... Kxf7 {[%clk 0:00:18.4]} 31. h5 {[%clk 0:00:13.1]} 31... Ke7
{[%clk 0:00:18.7]} 32. Rc7 {[%clk 0:00:13.5]} 32... Kd6 {[%clk 0:00:18.6]} 33.
Rc1 {[%clk 0:00:13]} 33... Bb7 {[%clk 0:00:19.3]} 34. Rd1+ {[%clk 0:00:13.2]}
34... Bd5 {[%clk 0:00:20]} 35. f3 {[%clk 0:00:13.7]} 35... Ne5 {[%clk
0:00:19.5]} 36. Re1 {[%clk 0:00:12.6]} 36... Rc8 {[%clk 0:00:19.8]} 37. Rd1
{[%clk 0:00:12.9]} 37... Rc2 {[%clk 0:00:19.6]} 38. a3 {[%clk 0:00:13.1]} 38...
Ra2 {[%clk 0:00:19.7]} 39. Rc1 {[%clk 0:00:12.4]} 39... Rxa3 {[%clk 0:00:19.8]}
40. Rc8 {[%clk 0:00:13.3]} 40... b4 {[%clk 0:00:20]} 41. Rd8+ {[%clk 0:00:13.6]}
41... Nd7 {[%clk 0:00:20.5]} 42. Rh8 {[%clk 0:00:13.2]} 42... b3 {[%clk
0:00:20.1]} 43. Rxh6+ {[%clk 0:00:14.1]} 43... Be6 {[%clk 0:00:20.8]} 44. Rxe6+
{[%clk 0:00:08.4]} 44... Kxe6 {[%clk 0:00:20.9]} 45. h6 {[%clk 0:00:09.3]} 45...
b2 {[%clk 0:00:21.2]} 46. h7 {[%clk 0:00:09.6]} 46... b1=Q+ {[%clk 0:00:21.5]}
47. Kh2 {[%clk 0:00:10.5]} 47... Qxh7+ {[%clk 0:00:21.9]} 0-1

[Event "Late-Titled-Tuesday-Blitz-January-23-2024"]
[Site "Chess.com"]
[Date "2024.01.23"]
[Round "8"]
[White "Fernando_Offermann"]
[Black "Vladimir_2020"]
[Result "0-1"]
[WhiteElo "2458"]
[BlackElo "2717"]
[TimeControl "180+1"]
[EndTime "15:25:39 PST"]
[Termination "Vladimir_2020 won by resignation"]

1. d4 {[%clk 0:03:00.9]} 1... d5 {[%clk 0:02:59.3]} 2. c4 {[%clk 0:03:00.2]}
2... e6 {[%clk 0:02:59.5]} 3. Nc3 {[%clk 0:02:59.4]} 3... Nf6 {[%clk 0:02:59.5]}
4. Nf3 {[%clk 0:02:56.8]} 4... a6 {[%clk 0:02:59]} 5. cxd5 {[%clk 0:02:52]} 5...
exd5 {[%clk 0:02:58.7]} 6. Bg5 {[%clk 0:02:51.8]} 6... Be6 {[%clk 0:02:57.9]} 7.
e3 {[%clk 0:02:51.4]} 7... Nbd7 {[%clk 0:02:56.6]} 8. Ne5 {[%clk 0:02:44.9]}
8... Be7 {[%clk 0:02:47.9]} 9. f4 {[%clk 0:02:42.4]} 9... Nxe5 {[%clk
0:02:28.4]} 10. dxe5 {[%clk 0:02:39.2]} 10... Ng4 {[%clk 0:02:27.9]} 11. Bxe7
{[%clk 0:02:35.8]} 11... Qxe7 {[%clk 0:02:28]} 12. Qd2 {[%clk 0:02:13.3]} 12...
Rd8 {[%clk 0:02:15.4]} 13. Be2 {[%clk 0:02:09.3]} 13... Qc5 {[%clk 0:01:58]} 14.
Bxg4 {[%clk 0:02:05.3]} 14... Bxg4 {[%clk 0:01:57.7]} 15. Rc1 {[%clk 0:02:05.3]}
15... d4 {[%clk 0:01:48.1]} 16. Ne2 {[%clk 0:01:50]} 16... Qd5 {[%clk
0:01:36.7]} 17. O-O {[%clk 0:01:34.7]} 17... dxe3 {[%clk 0:01:23.4]} 18. Qxe3
{[%clk 0:01:31.5]} 18... c6 {[%clk 0:01:12.9]} 19. Nc3 {[%clk 0:01:24.2]} 19...
Qd4 {[%clk 0:01:12.6]} 20. Qxd4 {[%clk 0:01:23]} 20... Rxd4 {[%clk 0:01:12.4]}
21. h3 {[%clk 0:01:20.8]} 21... Be6 {[%clk 0:00:59.5]} 22. Rcd1 {[%clk
0:01:19.2]} 22... Rxd1 {[%clk 0:00:56.6]} 23. Rxd1 {[%clk 0:01:18.9]} 23... Ke7
{[%clk 0:00:53.5]} 24. a3 {[%clk 0:01:18.7]} 24... f6 {[%clk 0:00:47.2]} 25.
exf6+ {[%clk 0:01:17]} 25... gxf6 {[%clk 0:00:47.2]} 26. Kf2 {[%clk 0:01:16.9]}
26... h5 {[%clk 0:00:40.1]} 27. Ne4 {[%clk 0:01:15.3]} 27... Bd5 {[%clk
0:00:38.7]} 28. Nc3 {[%clk 0:01:07.1]} 28... Bb3 {[%clk 0:00:38.4]} 29. Rd2
{[%clk 0:01:03.5]} 29... Rg8 {[%clk 0:00:36.1]} 30. g3 {[%clk 0:01:01.9]} 30...
a5 {[%clk 0:00:35.3]} 31. h4 {[%clk 0:01:00.2]} 31... a4 {[%clk 0:00:32.6]} 32.
Ne4 {[%clk 0:00:53.2]} 32... b6 {[%clk 0:00:29.2]} 33. Nc3 {[%clk 0:00:44.8]}
33... Ke6 {[%clk 0:00:24.4]} 34. Re2+ {[%clk 0:00:40.9]} 34... Kf5 {[%clk
0:00:23.4]} 35. Rd2 {[%clk 0:00:39.3]} 35... Ke6 {[%clk 0:00:15.2]} 36. Re2+
{[%clk 0:00:38.9]} 36... Kf7 {[%clk 0:00:13.6]} 37. Rd2 {[%clk 0:00:37.5]} 37...
Ke7 {[%clk 0:00:13.8]} 38. Re2+ {[%clk 0:00:37.3]} 38... Kd7 {[%clk 0:00:14.1]}
39. Rd2+ {[%clk 0:00:37.4]} 39... Kc7 {[%clk 0:00:14.3]} 40. Ne4 {[%clk
0:00:37.5]} 40... Rf8 {[%clk 0:00:13.9]} 41. Nc3 {[%clk 0:00:33.9]} 41... b5
{[%clk 0:00:12.7]} 42. Ne4 {[%clk 0:00:33.2]} 42... Bd5 {[%clk 0:00:12.5]} 43.
Nc3 {[%clk 0:00:33]} 43... Kd6 {[%clk 0:00:12.7]} 44. Ne4+ {[%clk 0:00:32]}
44... Ke6 {[%clk 0:00:12.4]} 45. Nc3 {[%clk 0:00:31]} 45... Rb8 {[%clk
0:00:10.8]} 46. Ke3 {[%clk 0:00:27.2]} 46... Kd6 {[%clk 0:00:10.5]} 47. Kd4
{[%clk 0:00:24.3]} 47... Re8 {[%clk 0:00:09.8]} 48. Re2 {[%clk 0:00:24.2]} 48...
c5+ {[%clk 0:00:07.7]} 49. Kd3 {[%clk 0:00:24.2]} 49... Bc4+ {[%clk 0:00:08.1]}
50. Kd2 {[%clk 0:00:24.4]} 50... Bxe2 {[%clk 0:00:08.3]} 51. Nxe2 {[%clk
0:00:25.3]} 51... Kd5 {[%clk 0:00:08.7]} 52. Kd3 {[%clk 0:00:24.9]} 52... c4+
{[%clk 0:00:08.5]} 53. Kd2 {[%clk 0:00:25.3]} 53... Ke4 {[%clk 0:00:08.7]} 0-1

[Event "Late-Titled-Tuesday-Blitz-January-23-2024"]
[Site "Chess.com"]
[Date "2024.01.23"]
[Round "8"]
[White "thesupera12"]
[Black "DonJuan_34"]
[Result "0-1"]
[WhiteElo "2508"]
[BlackElo "2398"]
[TimeControl "180+1"]
[EndTime "15:25:43 PST"]
[Termination "DonJuan_34 won by resignation"]

1. d4 {[%clk 0:03:00.9]} 1... Nf6 {[%clk 0:02:59.4]} 2. Bg5 {[%clk 0:03:00.2]}
2... e6 {[%clk 0:02:58.9]} 3. Nf3 {[%clk 0:02:59.2]} 3... d5 {[%clk 0:02:59]} 4.
g3 {[%clk 0:02:58.5]} 4... Be7 {[%clk 0:02:59.5]} 5. Bg2 {[%clk 0:02:58.9]} 5...
O-O {[%clk 0:02:59.2]} 6. O-O {[%clk 0:02:59.5]} 6... Nbd7 {[%clk 0:02:58.8]} 7.
Nbd2 {[%clk 0:02:58.1]} 7... c5 {[%clk 0:02:59.1]} 8. c4 {[%clk 0:02:56.1]} 8...
cxd4 {[%clk 0:02:56.8]} 9. Nxd4 {[%clk 0:02:56.1]} 9... h6 {[%clk 0:02:46.9]}
10. Bxf6 {[%clk 0:02:52.2]} 10... Nxf6 {[%clk 0:02:46.6]} 11. Rc1 {[%clk
0:02:51.4]} 11... Bd7 {[%clk 0:02:44.8]} 12. Qb3 {[%clk 0:02:46.3]} 12... Qb6
{[%clk 0:02:39.6]} 13. cxd5 {[%clk 0:02:45.9]} 13... Qxb3 {[%clk 0:02:34.8]} 14.
N2xb3 {[%clk 0:02:43.2]} 14... exd5 {[%clk 0:02:19.4]} 15. Nc5 {[%clk
0:02:37.8]} 15... Bxc5 {[%clk 0:02:10.8]} 16. Rxc5 {[%clk 0:02:38.7]} 16... Rfc8
{[%clk 0:02:10.5]} 17. Rfc1 {[%clk 0:02:37.6]} 17... Rxc5 {[%clk 0:02:09.2]} 18.
Rxc5 {[%clk 0:02:38.5]} 18... Rc8 {[%clk 0:02:09.3]} 19. Rxc8+ {[%clk 0:02:35]}
19... Bxc8 {[%clk 0:02:09.1]} 20. Nb5 {[%clk 0:02:35.9]} 20... Bd7 {[%clk
0:01:48.8]} 21. Nxa7 {[%clk 0:02:29]} 21... Kf8 {[%clk 0:01:47.7]} 22. e3 {[%clk
0:02:27.8]} 22... Ke7 {[%clk 0:01:46.6]} 23. Bf1 {[%clk 0:02:28.4]} 23... Kd6
{[%clk 0:01:31.1]} 24. Nb5+ {[%clk 0:02:28.2]} 24... Bxb5 {[%clk 0:01:24.2]} 25.
Bxb5 {[%clk 0:02:26.7]} 25... Kc5 {[%clk 0:01:24.7]} 26. Bd3 {[%clk 0:02:22.2]}
26... d4 {[%clk 0:01:22.7]} 27. e4 {[%clk 0:02:21.6]} 27... Nd7 {[%clk
0:01:21.7]} 28. Kf1 {[%clk 0:02:19.9]} 28... Kb4 {[%clk 0:01:14.4]} 29. Ke2
{[%clk 0:02:18.9]} 29... Nc5 {[%clk 0:01:14.3]} 30. Kd2 {[%clk 0:02:10.6]} 30...
g5 {[%clk 0:00:59.2]} 31. f3 {[%clk 0:02:05.5]} 31... Nd7 {[%clk 0:00:57.8]} 32.
f4 {[%clk 0:02:00.9]} 32... f6 {[%clk 0:00:56.5]} 33. Bc2 {[%clk 0:01:59.7]}
33... Nc5 {[%clk 0:00:53]} 34. a3+ {[%clk 0:01:59.1]} 34... Kc4 {[%clk
0:00:50.6]} 35. b4 {[%clk 0:01:50.7]} 35... Ne6 {[%clk 0:00:48.3]} 36. f5 {[%clk
0:01:47]} 36... Nd8 {[%clk 0:00:43.1]} 37. Bd1 {[%clk 0:01:32.6]} 37... d3
{[%clk 0:00:37.9]} 38. Bh5 {[%clk 0:01:24]} 38... Kd4 {[%clk 0:00:30.6]} 39. Bf3
{[%clk 0:01:04.6]} 39... Nc6 {[%clk 0:00:29.9]} 40. b5 {[%clk 0:01:00.2]} 40...
Ne5 {[%clk 0:00:29.5]} 41. Bg2 {[%clk 0:00:59.4]} 41... Nc4+ {[%clk 0:00:29.2]}
42. Kc1 {[%clk 0:00:59.7]} 42... Kc3 {[%clk 0:00:27.1]} 43. Bf3 {[%clk
0:00:57.4]} 43... d2+ {[%clk 0:00:26]} 44. Kb1 {[%clk 0:00:56.2]} 44... Nxa3+
{[%clk 0:00:22.9]} 45. Ka2 {[%clk 0:00:56.2]} 45... Nc4 {[%clk 0:00:19.4]} 46.
b6 {[%clk 0:00:54.7]} 46... Kc2 {[%clk 0:00:15.8]} 47. Be2 {[%clk 0:00:52.3]}
47... Nxb6 {[%clk 0:00:14.3]} 48. e5 {[%clk 0:00:51.4]} 48... fxe5 {[%clk
0:00:13.8]} 49. f6 {[%clk 0:00:52.1]} 49... Nd7 {[%clk 0:00:14.2]} 50. f7 {[%clk
0:00:51.9]} 50... d1=Q {[%clk 0:00:13.5]} 51. Bxd1+ {[%clk 0:00:52.6]} 51...
Kxd1 {[%clk 0:00:13.6]} 52. Kb3 {[%clk 0:00:53.5]} 52... e4 {[%clk 0:00:13.8]}
53. Kc4 {[%clk 0:00:54]} 53... e3 {[%clk 0:00:13.9]} 54. Kd5 {[%clk 0:00:54.9]}
54... e2 {[%clk 0:00:14.2]} 55. Kd6 {[%clk 0:00:55.6]} 55... Nf8 {[%clk
0:00:14.2]} 56. Ke7 {[%clk 0:00:55.6]} 56... Ng6+ {[%clk 0:00:14.3]} 57. Kf6
{[%clk 0:00:55.6]} 57... Nf8 {[%clk 0:00:13.8]} 58. Ke7 {[%clk 0:00:55]} 58...
e1=Q+ {[%clk 0:00:13.9]} 59. Kxf8 {[%clk 0:00:55]} 59... b5 {[%clk 0:00:13.8]}
60. Kg7 {[%clk 0:00:55.1]} 60... Qe7 {[%clk 0:00:12.6]} 61. Kg8 {[%clk
0:00:54.8]} 61... Qe6 {[%clk 0:00:12.3]} 62. Kg7 {[%clk 0:00:55.1]} 62... Qe5+
{[%clk 0:00:12.4]} 63. Kg8 {[%clk 0:00:55.4]} 63... Qe6 {[%clk 0:00:12.5]} 64.
Kg7 {[%clk 0:00:54.9]} 64... Qxf7+ {[%clk 0:00:11.3]} 65. Kxf7 {[%clk
0:00:55.5]} 65... b4 {[%clk 0:00:12.1]} 66. Kg6 {[%clk 0:00:56.3]} 66... b3
{[%clk 0:00:12.5]} 67. Kxh6 {[%clk 0:00:57.2]} 67... b2 {[%clk 0:00:13.3]} 68.
Kxg5 {[%clk 0:00:57.8]} 68... b1=Q {[%clk 0:00:14.2]} 69. h4 {[%clk 0:00:58.2]}
69... Ke2 {[%clk 0:00:14.6]} 70. h5 {[%clk 0:00:57.8]} 70... Kf3 {[%clk
0:00:15.2]} 71. Kf6 {[%clk 0:00:55.9]} 71... Qb8 {[%clk 0:00:15.5]} 72. g4
{[%clk 0:00:54.7]} 72... Kxg4 {[%clk 0:00:15.1]} 73. h6 {[%clk 0:00:55]} 73...
Qh8+ {[%clk 0:00:14.9]} 74. Kg6 {[%clk 0:00:55.9]} 74... Kh4 {[%clk 0:00:14.4]}
75. h7 {[%clk 0:00:56.8]} 75... Kg4 {[%clk 0:00:13.7]} 76. Kh6 {[%clk
0:00:57.7]} 76... Kf5 {[%clk 0:00:13.6]} 0-1

[Event "Late-Titled-Tuesday-Blitz-January-23-2024"]
[Site "Chess.com"]
[Date "2024.01.23"]
[Round "8"]
[White "Grischuk"]
[Black "AntonSmirnov"]
[Result "1-0"]
[WhiteElo "3080"]
[BlackElo "2983"]
[TimeControl "180+1"]
[EndTime "15:26:01 PST"]
[Termination "Grischuk won by resignation"]

1. d4 {[%clk 0:03:00.9]} 1... d5 {[%clk 0:02:44.1]} 2. c4 {[%clk 0:03:01]} 2...
c6 {[%clk 0:02:43.9]} 3. Nf3 {[%clk 0:03:00.1]} 3... Nf6 {[%clk 0:02:44.4]} 4.
Nc3 {[%clk 0:03:00.6]} 4... dxc4 {[%clk 0:02:44.1]} 5. a4 {[%clk 0:03:00.8]}
5... Bf5 {[%clk 0:02:44.6]} 6. Ne5 {[%clk 0:03:01.4]} 6... e6 {[%clk 0:02:44.8]}
7. f3 {[%clk 0:03:01.6]} 7... Bb4 {[%clk 0:02:45.5]} 8. e4 {[%clk 0:02:58.1]}
8... Bxe4 {[%clk 0:02:45.1]} 9. Nxf7 {[%clk 0:02:57.7]} 9... Kxf7 {[%clk
0:02:41.1]} 10. fxe4 {[%clk 0:02:58]} 10... Nxe4 {[%clk 0:02:39.9]} 11. Qh5+
{[%clk 0:02:57.6]} 11... g6 {[%clk 0:02:35.4]} 12. Qf3+ {[%clk 0:02:56.9]} 12...
Nf6 {[%clk 0:02:35.6]} 13. Be2 {[%clk 0:02:48.9]} 13... Qxd4 {[%clk 0:02:28.7]}
14. Bd2 {[%clk 0:02:48.2]} 14... Nd7 {[%clk 0:02:21.7]} 15. O-O-O {[%clk
0:02:47.8]} 15... Ne5 {[%clk 0:02:19.5]} 16. Qg3 {[%clk 0:02:40.3]} 16... Bd6
{[%clk 0:01:51.4]} 17. Qh3 {[%clk 0:02:09.5]} 17... Nd3+ {[%clk 0:01:48.6]} 18.
Bxd3 {[%clk 0:02:09.3]} 18... cxd3 {[%clk 0:01:46.4]} 19. Rhf1 {[%clk
0:02:00.4]} 19... Rad8 {[%clk 0:01:44.7]} 20. Bg5 {[%clk 0:01:40.5]} 20... Be5
{[%clk 0:01:43.7]} 21. Rxf6+ {[%clk 0:01:38.7]} 21... Bxf6 {[%clk 0:01:40.7]}
22. Rf1 {[%clk 0:01:39.2]} 22... d2+ {[%clk 0:00:41.3]} 23. Kd1 {[%clk
0:01:39.1]} 23... Qc4 {[%clk 0:00:30.7]} 24. Rxf6+ {[%clk 0:01:05.1]} 24... Kg7
{[%clk 0:00:30.9]} 25. Qh6+ {[%clk 0:00:54.9]} 25... Kg8 {[%clk 0:00:31]} 26.
Rxg6+ {[%clk 0:00:55.4]} 26... hxg6 {[%clk 0:00:26.9]} 27. Qxg6+ {[%clk
0:00:56.3]} 27... Kf8 {[%clk 0:00:27.3]} 28. Qf6+ {[%clk 0:00:57.2]} 28... Kg8
{[%clk 0:00:21.3]} 29. Qxd8+ {[%clk 0:00:57.3]} 29... Kh7 {[%clk 0:00:20.3]} 30.
Qe7+ {[%clk 0:00:53.2]} 30... Kg8 {[%clk 0:00:20.5]} 31. Qe8+ {[%clk 0:00:47.7]}
31... Kg7 {[%clk 0:00:20.9]} 32. Bf6+ {[%clk 0:00:47.8]} 32... Kxf6 {[%clk
0:00:21.4]} 33. Qxh8+ {[%clk 0:00:47.6]} 33... Ke7 {[%clk 0:00:22]} 34. Qg7+
{[%clk 0:00:42.8]} 34... Ke8 {[%clk 0:00:20.9]} 35. Kxd2 {[%clk 0:00:32.7]}
35... Qf4+ {[%clk 0:00:20.7]} 36. Kc2 {[%clk 0:00:31.5]} 36... Qxh2 {[%clk
0:00:20.9]} 37. Qxb7 {[%clk 0:00:27.4]} 37... Qxg2+ {[%clk 0:00:20.5]} 38. Kb3
{[%clk 0:00:28.1]} 38... e5 {[%clk 0:00:19.6]} 39. Qxa7 {[%clk 0:00:23.3]} 39...
Qg8+ {[%clk 0:00:13.7]} 40. Kb4 {[%clk 0:00:14.5]} 40... Qg4+ {[%clk 0:00:13.6]}
41. Ka3 {[%clk 0:00:12.8]} 41... Qf4 {[%clk 0:00:10.2]} 42. Qc5 {[%clk
0:00:09.3]} 42... Kd7 {[%clk 0:00:10.1]} 43. a5 {[%clk 0:00:09.8]} 43... Qf1
{[%clk 0:00:09.1]} 44. Qxe5 {[%clk 0:00:07.5]} 44... Kc8 {[%clk 0:00:08.7]} 45.
Qc5 {[%clk 0:00:07.2]} 45... Kb7 {[%clk 0:00:08.3]} 46. Qb6+ {[%clk 0:00:07.4]}
46... Ka8 {[%clk 0:00:08.9]} 47. Qxc6+ {[%clk 0:00:08.1]} 47... Kb8 {[%clk
0:00:09.5]} 48. a6 {[%clk 0:00:04.7]} 48... Qf8+ {[%clk 0:00:08.3]} 49. Kb3
{[%clk 0:00:03.4]} 49... Qf7+ {[%clk 0:00:08.3]} 50. Qd5 {[%clk 0:00:03.3]}
50... Qc7 {[%clk 0:00:04]} 51. Qb7+ {[%clk 0:00:03.2]} 1-0

[Event "Late-Titled-Tuesday-Blitz-January-23-2024"]
[Site "Chess.com"]
[Date "2024.01.23"]
[Round "8"]
[White "Revan_2002"]
[Black "karinachess1"]
[Result "1-0"]
[WhiteElo "2465"]
[BlackElo "2595"]
[TimeControl "180+1"]
[EndTime "15:26:01 PST"]
[Termination "Revan_2002 won by checkmate"]

1. b3 {[%clk 0:02:59.5]} 1... e5 {[%clk 0:03:00]} 2. Bb2 {[%clk 0:02:52.9]} 2...
Nc6 {[%clk 0:03:00.1]} 3. e3 {[%clk 0:02:51.8]} 3... g6 {[%clk 0:03:00.5]} 4.
Bb5 {[%clk 0:02:51.9]} 4... Bg7 {[%clk 0:03:00.9]} 5. c4 {[%clk 0:02:51.7]} 5...
Nge7 {[%clk 0:03:01]} 6. Ne2 {[%clk 0:02:51.1]} 6... O-O {[%clk 0:03:01.3]} 7.
O-O {[%clk 0:02:51.1]} 7... d5 {[%clk 0:03:01.7]} 8. cxd5 {[%clk 0:02:50]} 8...
Nxd5 {[%clk 0:03:02.6]} 9. Bxc6 {[%clk 0:02:49.4]} 9... bxc6 {[%clk 0:03:02.6]}
10. Nbc3 {[%clk 0:02:49.7]} 10... Ba6 {[%clk 0:02:52.9]} 11. a3 {[%clk
0:02:43.9]} 11... Nxc3 {[%clk 0:02:40.7]} 12. Bxc3 {[%clk 0:02:42.5]} 12... Qd3
{[%clk 0:02:33.7]} 13. Re1 {[%clk 0:02:36.5]} 13... Rfd8 {[%clk 0:02:31.6]} 14.
Ng3 {[%clk 0:02:14.1]} 14... Rab8 {[%clk 0:02:30.6]} 15. b4 {[%clk 0:02:13.6]}
15... Qd5 {[%clk 0:02:24]} 16. Qa4 {[%clk 0:02:07.5]} 16... Bb5 {[%clk
0:01:59.8]} 17. Qxa7 {[%clk 0:02:02.1]} 17... Ra8 {[%clk 0:01:48.5]} 18. Qxc7
{[%clk 0:01:51.1]} 18... Rd7 {[%clk 0:01:39.1]} 19. Qb6 {[%clk 0:01:51.1]} 19...
Bf8 {[%clk 0:01:14.9]} 20. e4 {[%clk 0:01:50.7]} 20... Qe6 {[%clk 0:01:13.5]}
21. Qe3 {[%clk 0:01:39.1]} 21... Rd3 {[%clk 0:01:11.4]} 22. Qb6 {[%clk
0:01:32.4]} 22... h5 {[%clk 0:00:57.9]} 23. a4 {[%clk 0:01:14.8]} 23... Rxa4
{[%clk 0:00:53.2]} 24. Rxa4 {[%clk 0:01:14.4]} 24... Bxa4 {[%clk 0:00:54.1]} 25.
Nf1 {[%clk 0:01:14.4]} 25... Bb5 {[%clk 0:00:47.4]} 26. Qb8 {[%clk 0:01:13.9]}
26... Rd6 {[%clk 0:00:39]} 27. Ra1 {[%clk 0:01:12.4]} 27... Rd7 {[%clk
0:00:15.3]} 28. Ra8 {[%clk 0:01:09.4]} 28... Qd6 {[%clk 0:00:15.7]} 29. Qxd6
{[%clk 0:01:03.2]} 29... Rxd6 {[%clk 0:00:16.6]} 30. Bxe5 {[%clk 0:01:03.7]}
30... Rd7 {[%clk 0:00:13.6]} 31. Bc3 {[%clk 0:01:01.5]} 31... f6 {[%clk
0:00:12.2]} 32. Ne3 {[%clk 0:00:59]} 32... Kf7 {[%clk 0:00:11.1]} 33. f3 {[%clk
0:00:54.8]} 33... Bh6 {[%clk 0:00:11]} 34. Kf2 {[%clk 0:00:55.3]} 34... Bf4
{[%clk 0:00:10.6]} 35. g3 {[%clk 0:00:52.5]} 35... Be5 {[%clk 0:00:11.2]} 36.
Ra2 {[%clk 0:00:41.3]} 36... Rd3 {[%clk 0:00:08.5]} 37. Bxe5 {[%clk 0:00:40.6]}
37... fxe5 {[%clk 0:00:09.4]} 38. Rb2 {[%clk 0:00:41.2]} 38... Ke6 {[%clk
0:00:08.8]} 39. Nd1 {[%clk 0:00:40.6]} 39... Ra3 {[%clk 0:00:08]} 40. Nc3 {[%clk
0:00:38.7]} 40... Bc4 {[%clk 0:00:07.9]} 41. b5 {[%clk 0:00:39.1]} 41... cxb5
{[%clk 0:00:07.4]} 42. Nxb5 {[%clk 0:00:40]} 42... Rd3 {[%clk 0:00:07.6]} 43.
Nc3 {[%clk 0:00:38.3]} 43... Rd6 {[%clk 0:00:07.8]} 44. Nd1 {[%clk 0:00:35.3]}
44... Bd3 {[%clk 0:00:07.8]} 45. Ke3 {[%clk 0:00:34.5]} 45... Ba6 {[%clk
0:00:07.7]} 46. Nf2 {[%clk 0:00:35.1]} 46... Kf6 {[%clk 0:00:07.7]} 47. f4
{[%clk 0:00:34.1]} 47... Re6 {[%clk 0:00:06.9]} 48. fxe5+ {[%clk 0:00:32.8]}
48... Kxe5 {[%clk 0:00:06.5]} 49. d4+ {[%clk 0:00:33.4]} 49... Kf6 {[%clk
0:00:06.7]} 50. d5 {[%clk 0:00:33.7]} 50... Rd6 {[%clk 0:00:06.9]} 51. Kd4
{[%clk 0:00:34]} 51... Ke7 {[%clk 0:00:04.6]} 52. e5 {[%clk 0:00:33.6]} 52...
Rd8 {[%clk 0:00:05.2]} 53. Ne4 {[%clk 0:00:33.9]} 53... Bc8 {[%clk 0:00:04.9]}
54. Nc5 {[%clk 0:00:23.9]} 54... Bf5 {[%clk 0:00:04.5]} 55. Rb7+ {[%clk
0:00:21]} 55... Ke8 {[%clk 0:00:04.9]} 56. e6 {[%clk 0:00:21.3]} 56... h4 {[%clk
0:00:04.7]} 57. Ke5 {[%clk 0:00:20.1]} 57... hxg3 {[%clk 0:00:04.7]} 58. hxg3
{[%clk 0:00:21]} 58... Bh3 {[%clk 0:00:04.5]} 59. Ne4 {[%clk 0:00:19.4]} 59...
Bg2 {[%clk 0:00:03.8]} 60. Nf6+ {[%clk 0:00:19.4]} 60... Kf8 {[%clk 0:00:04.7]}
61. Rf7# {[%clk 0:00:19.6]} 1-0